bitfinex/quotes_ETHUSD_20251108
["timestamp","ask_amount","ask_price","bid_price","bid_amount"]
[1762624422144,0.002,3399.8,3399.7,2.941436]
[1762624422343,0.002,3400.1,3399.9,2.94126297]
[1762624422502,0.002,3400.1,3399.9,3.42746297]
[1762624423948,0.002,3400.1,3399.9,3.18436297]
[1762624424300,0.4803,3400.0,3399.9,2.94126297]
[1762624424643,0.9398,3400.0,3399.9,2.94126297]
[1762624428368,0.4803,3400.0,3399.9,2.94126297]
[1762624429173,0.9398,3400.0,3399.9,2.94126297]
[1762624429849,0.4803,3400.0,3399.9,2.94126297]
[1762624431780,0.002,3400.0,3399.9,2.94126297]
[1762624431938,0.002,3400.0,3399.9,3.18436297]
[1762624432142,0.002,3400.0,3399.9,4.08140819]
[1762624432677,0.002,3400.0,3399.9,4.22780819]
[1762624434399,0.27702809,3400.0,3399.9,4.22780819]
[1762624436212,0.27712561,3400.0,3399.9,4.22780819]
[1762624439220,0.002,3400.1,3400.0,2.94117647]
[1762624439366,0.002,3400.1,3400.0,4.48945386]
[1762624440015,0.4803,3400.1,3400.0,4.24635386]
[1762624440215,0.4803,3400.1,3400.0,2.94117647]
[1762624440216,0.9398,3400.1,3400.0,2.94117647]
[1762624440465,0.4803,3400.1,3400.0,2.94117647]
[1762624440742,0.9398,3400.1,3400.0,2.94117647]
[1762624441489,0.4803,3400.1,3400.0,2.94117647]
[1762624441693,0.002,3400.1,3400.0,2.94117647]
[1762624441926,0.002,3400.1,3400.0,3.82355573]
[1762624442407,0.4555,3400.1,3400.0,2.94117647]
[1762624443024,0.9164,3400.1,3400.0,2.94117647]
[1762624451143,1.19226156,3400.1,3400.0,2.94117647]
[1762624451942,0.27786156,3400.1,3400.0,2.94117647]
[1762624454011,0.27786156,3400.1,3400.0,3.18427647]
[1762624454238,0.27786156,3400.1,3400.0,3.89039189]
[1762624454749,0.27786156,3400.1,3400.0,4.27989189]
[1762624454934,0.002,3400.4,3400.3,2.94091697]
[1762624455138,0.002,3400.4,3400.3,3.18401697]
[1762624455333,0.002,3400.4,3400.3,3.33041697]
[1762624455539,0.002,3400.4,3400.3,4.38045856]
[1762624456360,0.002,3400.4,3400.3,4.49828808]
[1762624457852,0.002,3400.5,3400.4,3.42703049]
[1762624457853,1e-08,3400.5,3400.4,3.42703049]
[1762624458055,0.005,3400.9,3400.8,2.94048459]
[1762624458227,1e-08,3401.5,3401.4,2.93996589]
[1762624458757,0.45350001,3401.5,3401.4,2.93996589]
[1762624458924,1e-08,3401.5,3401.4,3.77106828]
[1762624459362,1e-08,3401.5,3401.4,3.52796828]
[1762624459551,1e-08,3401.5,3401.4,2.93996589]
[1762624459552,0.45350001,3401.5,3401.4,2.93996589]
[1762624460071,1e-08,3401.5,3401.4,2.93996589]
[1762624462385,1e-08,3401.5,3401.4,3.18306589]
[1762624466804,0.27448149,3401.5,3401.4,3.18306589]
[1762624468001,0.27648149,3401.5,3401.4,3.32946589]
[1762624468178,0.27648149,3401.5,3401.4,4.04662828]
[1762624468608,0.27648149,3401.5,3401.4,4.08000977]
[1762624468769,1.19088149,3401.5,3401.4,4.08000977]
[1762624469278,0.72998149,3401.5,3401.4,4.08000977]
[1762624469480,0.27648149,3401.5,3401.4,4.08000977]
[1762624470799,0.72998149,3401.5,3401.4,4.08000977]
[1762624471103,1.19088149,3401.5,3401.4,2.93996589]
[1762624471290,1.59638549,3401.5,3401.4,2.93996589]
[1762624472463,0.27648149,3401.5,3401.4,2.93996589]
[1762624472676,0.76958149,3401.5,3401.4,2.93996589]
[1762624472975,1.23288149,3401.5,3401.4,2.93996589]
[1762624473568,0.76958149,3401.5,3401.4,2.93996589]
[1762624473772,1.23288149,3401.5,3401.4,2.93996589]
[1762624475379,1.23288149,3401.5,3400.9,0.001]
[1762624475380,1.23288149,3401.5,3401.3,2.93999371]
[1762624475601,0.73778148,3401.4,3401.3,2.93999371]
[1762624475911,1.23088148,3401.4,3401.3,2.93999371]
[1762624476106,0.1464,3401.3,3401.2,2.94010206]
[1762624476312,0.88418148,3401.3,3401.2,2.94010206]
[1762624476498,0.91398148,3401.3,3401.2,2.94010206]
[1762624476686,1.37728148,3401.3,3401.2,2.94010206]
[1762624477014,1.37728148,3401.3,3400.9,0.001]
[1762624477172,0.4931,3401.0,3400.9,2.94139581]
[1762624477506,0.91398148,3401.0,3400.9,2.94139581]
[1762624477715,0.27448148,3401.0,3400.9,2.94139581]
[1762624478004,1.23088148,3401.0,3400.9,2.94139581]
[1762624481113,0.27448148,3401.0,3400.9,2.94139581]
[1762624481311,0.27448148,3401.0,3400.9,3.77268445]
[1762624482117,0.27448148,3401.0,3400.9,4.23798446]
[1762624482315,0.27448148,3401.0,3400.9,4.48108446]
[1762624483815,0.27448148,3401.0,3400.9,5.49769646]
[1762624485130,0.00200001,3401.5,3400.9,5.49769646]
[1762624485131,0.00200001,3401.5,3401.4,2.93996589]
[1762624485454,1.23290706,3401.5,3401.4,2.93996589]
[1762624486404,0.27720706,3401.5,3401.4,2.93996589]
[1762624486731,0.27720706,3401.5,3401.4,3.5309083]
[1762624489149,0.77570706,3401.5,3401.4,3.5309083]
[1762624489343,0.77570706,3401.5,3401.4,2.93996589]
[1762624489733,1.23290706,3401.5,3401.4,2.93996589]
[1762624496965,0.77570706,3401.5,3401.4,2.93996589]
[1762624497142,0.27720706,3401.5,3401.4,2.93996589]
[1762624498980,1.23290706,3401.5,3401.4,2.93996589]
[1762624501769,0.007,3401.9,3401.8,2.9396202]
[1762624501770,1e-08,3401.9,3401.8,2.9396202]
[1762624502064,0.19430001,3401.9,3401.8,2.9396202]
[1762624502238,0.65060001,3401.9,3401.8,2.9396202]
[1762624502441,0.92230001,3401.9,3401.8,2.9396202]
[1762624502999,0.45630001,3401.9,3401.8,2.9396202]
[1762624504568,0.002,3402.2,3402.1,2.93936098]
[1762624504732,0.4583,3402.2,3402.1,2.93936098]
[1762624504932,0.1943,3402.4,3402.3,2.93918819]
[1762624510994,0.599804,3402.4,3402.3,2.93918819]
[1762624513584,0.87511212,3402.4,3402.3,2.93918819]
[1762624515469,0.27530812,3402.4,3402.3,2.93918819]
[1762624515707,0.42170812,3402.4,3402.3,2.93918819]
[1762624515902,0.410504,3402.9,3402.8,2.93875631]
[1762624519806,0.1464,3402.8,3402.6,2.93892117]
[1762624520012,6.72775217,3402.7,3402.6,2.93892117]
[1762624520418,6.72775217,3402.7,3402.5,2.93897593]
[1762624520611,1.665216,3402.6,3402.5,2.93897593]
[1762624520822,2.33849122,3402.6,3402.5,2.93897593]
[1762624521032,2.33849122,3402.6,3402.4,2.93903923]
[1762624521720,2.33849122,3402.6,3402.5,2.93901542]
[1762624522214,2.68949122,3402.6,3402.5,2.93901542]
[1762624522534,2.69299122,3402.6,3402.5,2.93901542]
[1762624522738,2.69299122,3402.6,3402.4,2.9390632]
[1762624522905,7.45230091,3402.5,3402.4,2.9390632]
[1762624523754,1.811616,3402.4,3402.3,2.93913193]
[1762624523908,2.019716,3402.4,3402.3,2.93913193]
[1762624524554,2.016216,3402.4,3402.3,2.93913193]
[1762624524726,2.019716,3402.4,3402.3,2.93913193]
[1762624525962,2.80549649,3402.4,3402.3,2.93913193]
[1762624527947,3.0810064,3402.4,3402.3,2.93913193]
[1762624532333,2.29522591,3402.4,3402.3,2.93913193]
[1762624533560,2.29172591,3402.4,3402.3,2.93913193]
[1762624533764,2.29522591,3402.4,3402.3,2.93913193]
[1762624534565,2.29172591,3402.4,3402.3,2.93913193]
[1762624535478,2.29522591,3402.4,3402.3,2.93913193]
[1762624537282,0.1464,3402.3,3401.8,0.001]
[1762624537581,6.72775217,3402.0,3401.9,2.93952079]
[1762624537785,7.00326208,3402.0,3401.9,2.93952079]
[1762624538087,7.35086208,3402.0,3401.9,2.94052079]
[1762624539007,2.28832591,3402.0,3401.9,2.94052079]
[1762624539177,1.94072591,3402.0,3401.9,2.94052079]
[1762624540374,1.94072591,3402.0,3401.9,3.40322079]
[1762624541875,1.94072591,3402.0,3401.9,2.94052079]
[1762624544396,1.94072591,3402.0,3401.9,3.39472079]
[1762624544705,1.53522191,3402.0,3401.9,4.37094736]
[1762624544886,1.68162191,3402.0,3401.9,4.86854736]
[1762624545088,0.42190991,3402.0,3401.9,4.86854736]
[1762624549586,0.3829613,3402.0,3401.9,4.86854736]
[1762624549790,0.1813,3403.0,3402.3,2.93918819]
[1762624550001,0.1464,3402.4,3402.3,3.39338819]
[1762624550210,0.1464,3402.4,3402.3,4.02665471]
[1762624550715,0.1464,3402.4,3402.3,4.52425471]
[1762624551999,0.1464,3402.4,3402.3,2.93918819]
[1762624552203,0.1499,3402.4,3402.3,2.93918819]
[1762624552517,0.1464,3402.4,3402.3,2.93918819]
[1762624553015,0.1464,3402.4,3402.3,3.39338819]
[1762624553199,0.412504,3402.9,3402.8,2.93875631]
[1762624553610,0.416004,3402.9,3402.8,2.93875631]
[1762624555091,0.412504,3402.9,3402.8,3.39295631]
[1762624555519,0.412504,3402.9,3402.8,2.93875631]
[1762624555714,0.599004,3402.9,3402.8,2.93875631]
[1762624561038,0.599004,3402.9,3401.8,2.94057603]
[1762624561372,0.758504,3402.9,3402.8,2.93875631]
[1762624561873,1.06622464,3402.9,3402.8,2.93875631]
[1762624562282,2.32593664,3402.9,3402.8,2.93875631]
[1762624564585,0.405504,3402.7,3401.9,0.001]
[1762624564883,1.665216,3402.2,3402.1,2.93936098]
[1762624565178,2.09673664,3402.2,3402.1,2.93936098]
[1762624565325,0.68092464,3402.2,3402.1,3.42836098]
[1762624567428,0.405504,3402.4,3402.3,2.93913174]
[1762624567722,0.68090697,3402.4,3402.2,2.9392087]
[1762624567941,0.27540297,3402.3,3402.2,2.9392087]
[1762624570039,1.811616,3402.2,3401.9,2.94048539]
[1762624570237,0.3047,3402.0,3401.9,2.94053378]
[1762624570441,0.58010297,3402.0,3401.9,2.94053378]
[1762624571248,0.42180297,3402.0,3401.9,2.94053378]
[1762624575663,0.42180297,3402.0,3401.9,3.42953378]
[1762624575881,0.27540297,3402.0,3401.9,4.89972178]
[1762624577070,0.27540297,3402.0,3401.9,4.40962178]
[1762624577258,0.27540297,3402.0,3401.9,3.42953378]
[1762624578075,0.27540297,3402.0,3401.9,3.91963378]
[1762624579683,0.27540297,3402.0,3401.9,3.42953378]
[1762624580182,0.27540297,3402.0,3401.9,2.94053378]
[1762624580183,0.83700697,3402.0,3401.9,2.94053378]
[1762624580556,1.21310697,3402.0,3401.9,0.001]
[1762624580751,1.21310697,3402.0,3401.9,2.94053378]
[1762624581273,1.21310697,3402.0,3401.9,0.001]
[1762624581668,1.21310697,3402.0,3401.9,2.94053378]
[1762624581986,0.83700697,3402.0,3401.9,2.94053378]
[1762624582286,0.68090697,3402.0,3401.9,3.42953378]
[1762624582581,0.68090697,3402.0,3401.9,3.91963378]
[1762624583086,0.68090697,3402.0,3401.9,3.42953378]
[1762624583296,0.68090697,3402.0,3401.9,3.91963378]
[1762624583896,0.27540297,3402.0,3401.9,4.89972177]
[1762624585006,0.27540297,3402.0,3401.9,3.92062177]
[1762624585301,0.27540297,3402.0,3401.9,2.94053378]
[1762624585802,0.82730697,3402.0,3401.9,2.94053378]
[1762624586406,0.82730697,3402.0,3401.9,3.42953378]
[1762624586617,0.82730697,3402.0,3401.9,2.94053378]
[1762624587295,0.82730697,3402.0,3401.9,3.42953378]
[1762624587821,0.82730697,3402.0,3401.9,2.94053378]
[1762624589286,0.98340697,3402.0,3401.9,2.94053378]
[1762624590310,0.9834993,3402.0,3401.9,2.94053378]
[1762624594482,0.8273993,3402.0,3401.9,2.94053378]
[1762624594684,0.8293993,3402.0,3401.9,2.94053378]
[1762624596409,0.8293993,3402.0,3401.9,3.88623378]
[1762624598623,0.8293993,3402.0,3401.9,3.41873378]
[1762624599212,0.8293993,3402.0,3401.9,2.94053378]
[1762624600326,0.9854993,3402.0,3401.9,2.94053378]
[1762624601047,0.8293993,3402.0,3401.9,2.94053378]
[1762624601895,0.9876993,3402.0,3401.9,2.94053378]
[1762624605826,0.9876993,3402.0,3401.9,0.001]
[1762624606330,0.9876993,3402.0,3401.9,2.94053378]
[1762624608539,0.9876993,3402.0,3401.9,0.001]
[1762624608828,1.28938534,3402.0,3401.9,0.001]
[1762624611243,1.01389004,3402.0,3401.9,0.001]
[1762624611445,1.28971537,3402.0,3401.9,0.001]
[1762624612333,0.1743,3401.7,3400.9,0.001]
[1762624612503,0.37,3401.3,3400.9,0.001]
[1762624612703,0.37,3401.3,3401.2,0.4584]
[1762624612704,0.27582533,3401.3,3401.2,0.4584]
[1762624613047,0.27582533,3401.3,3401.2,0.9148]
[1762624613481,0.27582533,3401.3,3401.2,3.39853877]
[1762624613835,0.27582533,3401.3,3401.2,0.4584]
[1762624614034,0.27582533,3401.3,3400.9,2.94131954]
[1762624614035,0.405504,3401.2,3400.9,2.94131954]
[1762624614271,0.405504,3401.0,3400.9,2.94131954]
[1762624614597,0.68132933,3401.0,3400.9,2.94131954]
[1762624614734,0.68132933,3401.0,3400.9,3.39971954]
[1762624614939,0.68132933,3401.0,3400.9,2.94131954]
[1762624615135,0.68132933,3401.0,3400.9,0.001]
[1762624615750,0.85132933,3401.0,3400.9,0.001]
[1762624616293,1.39405959,3401.0,3400.9,0.001]
[1762624616796,0.85132933,3401.0,3400.9,0.001]
[1762624617848,2.11104133,3401.0,3400.9,0.001]
[1762624618048,2.91660377,3401.0,3400.9,0.001]
[1762624618273,2.48724133,3401.0,3400.9,0.001]
[1762624618857,5.427553,3401.0,3400.9,0.001]
[1762624619062,3.79631059,3401.0,3400.9,0.001]
[1762624619548,6.73662226,3401.0,3400.9,0.001]
[1762624619878,2.99074815,3401.0,3400.9,0.001]
[1762624620249,2.11104133,3401.0,3400.9,0.001]
[1762624620583,1.94104133,3401.0,3400.9,0.9158]
[1762624620750,1.94104133,3401.0,3400.9,3.85619812]
[1762624621080,1.53553733,3401.0,3400.9,3.85619812]
[1762624621683,1.94104133,3401.0,3400.9,3.85619812]
[1762624623288,2.08744133,3401.0,3400.9,3.85619812]
[1762624623477,0.27582533,3401.0,3400.9,4.53586698]
[1762624627819,0.27582533,3401.0,3400.9,3.85619812]
[1762624629976,0.27582533,3401.0,3400.9,3.86979812]
[1762624640939,0.27582533,3401.0,3400.9,3.39979812]
[1762624643152,0.27582533,3401.0,3400.9,3.86979812]
[1762624647481,0.27582533,3401.0,3400.9,3.39979812]
[1762624647782,0.27582533,3401.0,3400.9,2.94139812]
[1762624647938,0.27582533,3401.0,3400.9,3.41409812]
[1762624648878,0.27582533,3401.0,3400.9,3.88409812]
[1762624650773,0.27582533,3401.0,3400.9,4.87524523]
[1762624650983,0.27582533,3401.0,3400.9,3.88409812]
[1762624652278,0.65412533,3401.0,3400.9,2.94139812]
[1762624652441,0.27582533,3401.0,3400.9,2.94139812]
[1762624652786,1.05752933,3401.0,3400.9,2.94139812]
[1762624654788,1.22952933,3401.0,3400.9,2.94139812]
[1762624654993,1.85920983,3401.0,3400.9,0.001]
[1762624656284,1.68720983,3401.0,3400.9,2.94139812]
[1762624656510,1.68720983,3401.0,3400.9,3.14679812]
[1762624657784,1.05742395,3401.0,3400.9,3.14679812]
[1762624658584,0.27571995,3401.0,3400.9,4.05119812]
[1762624660095,0.27571995,3401.0,3400.9,4.0806021]
[1762624660591,0.27571995,3401.0,3400.9,4.2270021]
[1762624661972,1e-08,3401.0,3400.9,4.19759812]
[1762624662178,1e-08,3401.0,3400.9,5.29911341]
[1762624662495,1e-08,3401.0,3400.9,5.41691343]
[1762624662879,1e-08,3401.0,3400.9,5.21151343]
[1762624665578,0.002,3401.1,3401.0,2.94031167]
[1762624665761,0.002,3401.1,3401.0,3.88071167]
[1762624665961,0.002,3401.1,3401.0,5.50007767]
[1762624667195,0.002,3401.1,3401.0,5.52948078]
[1762624667489,0.002,3402.0,3401.7,2.93970661]
[1762624667695,0.002,3402.0,3401.7,3.88010661]
[1762624668392,0.002,3402.0,3401.7,4.58201706]
[1762624671962,0.002,3402.0,3401.7,4.72841706]
[1762624674089,0.27686581,3401.8,3401.7,4.72841706]
[1762624680692,0.27656178,3401.8,3401.7,4.72841706]
[1762624681498,0.27656178,3401.8,3401.7,4.24401706]
[1762624681807,0.27656178,3401.8,3401.7,4.69661706]
[1762624682175,0.27656178,3401.8,3401.7,3.78801706]
[1762624682370,0.27656178,3401.8,3401.7,4.69451706]
[1762624686200,1e-08,3402.2,3402.1,2.93936098]
[1762624686432,1e-08,3402.2,3402.1,4.12754201]
[1762624687534,1e-08,3402.2,3402.1,4.58014201]
[1762624687733,1e-08,3402.2,3402.1,4.12754201]
[1762624688716,1e-08,3402.2,3402.1,4.58014201]
[1762624689731,1e-08,3402.2,3402.1,4.12754201]
[1762624689926,0.17000001,3402.2,3402.1,3.08576098]
[1762624690114,1e-08,3402.2,3402.1,3.08576098]
[1762624691134,1e-08,3402.2,3402.1,2.93936098]
[1762624691135,0.17000001,3402.2,3402.1,2.93936098]
[1762624694239,0.17000001,3402.2,3402.1,3.14466098]
[1762624696363,0.95170401,3402.2,3402.1,3.14466098]
[1762624698325,1.22725538,3402.2,3402.1,3.14466098]
[1762624701159,0.85105538,3402.2,3402.1,3.14466098]
[1762624701362,0.27555138,3402.2,3402.1,3.14466098]
[1762624701524,0.27555138,3402.2,3402.1,3.59856098]
[1762624701720,0.27555138,3402.2,3402.1,5.03123999]
[1762624702061,0.27555138,3402.2,3402.1,5.14824639]
[1762624703362,1e-08,3402.2,3402.1,5.14824639]
[1762624703585,1e-08,3402.2,3402.1,5.00184639]
[1762624703863,1e-08,3402.2,3402.1,6.37931333]
[1762624705762,0.002,3402.5,3402.4,3.39300181]
[1762624705763,1e-08,3402.5,3402.4,3.39300181]
[1762624705922,1e-08,3402.5,3402.4,4.49279958]
[1762624706127,1e-08,3402.5,3402.4,4.94539958]
[1762624706528,1e-08,3402.5,3402.4,5.06315209]
[1762624707458,1e-08,3402.5,3402.4,4.49279958]
[1762624707774,1e-08,3402.5,3402.4,4.94539958]
[1762624711473,1e-08,3402.5,3402.4,4.93826958]
[1762624712237,1e-08,3402.5,3402.4,4.96766059]
[1762624712438,8.23241299,3404.6,3403.8,2.93789294]
[1762624712676,0.3833,3403.9,3403.8,2.93789294]
[1762624712871,0.5533,3403.9,3403.8,2.93789294]
[1762624713056,0.175,3403.9,3403.8,2.93789294]
[1762624713465,0.3214,3403.9,3403.8,2.93789294]
[1762624713778,0.3214,3403.9,3403.3,0.1464]
[1762624713779,0.6976,3403.9,3403.3,0.1464]
[1762624714074,0.0038,3403.7,3403.6,2.93806557]
[1762624717672,0.27852721,3403.7,3403.6,2.93806557]
[1762624718301,0.27852721,3403.7,3403.6,4.49172804]
[1762624718302,0.27472721,3403.7,3403.6,4.49172804]
[1762624718478,0.27472721,3403.7,3403.6,4.54122804]
[1762624718662,0.27472721,3403.7,3403.6,5.01932804]
[1762624718996,0.27672721,3403.7,3403.6,5.01932804]
[1762624719195,0.005,3403.9,3403.8,2.93789294]
[1762624719503,0.005,3403.9,3403.8,4.20691504]
[1762624719708,0.005,3403.9,3403.8,4.68501504]
[1762624720007,0.005,3403.9,3403.8,4.80272597]
[1762624720514,0.005,3403.9,3403.8,4.32462597]
[1762624720713,0.274,3403.9,3403.8,2.93789294]
[1762624722907,0.6502,3403.9,3403.8,2.93789294]
[1762624723103,0.274,3403.9,3403.8,2.93789294]
[1762624723808,0.6502,3403.9,3403.8,2.93789294]
[1762624724796,0.6502,3403.9,3403.6,0.2052]
[1762624725104,0.0038,3403.7,3403.6,3.14319626]
[1762624726403,0.0038,3403.7,3403.6,3.14326557]
[1762624726607,0.787604,3403.7,3403.6,3.14326557]
[1762624726805,0.787604,3403.7,3403.6,0.2052]
[1762624727696,0.409304,3403.7,3403.6,3.14326557]
[1762624728084,0.787604,3403.7,3403.6,3.14326557]
[1762624728276,0.787604,3403.7,3403.6,0.2052]
[1762624728702,0.787604,3403.7,3403.6,3.14326557]
[1762624728896,0.409304,3403.7,3403.6,3.14326557]
[1762624729299,0.787604,3403.7,3403.6,3.14326557]
[1762624730214,0.409304,3403.7,3403.6,3.14326557]
[1762624730913,0.787604,3403.7,3403.6,0.2052]
[1762624731104,0.787604,3403.7,3403.6,3.14326557]
[1762624731288,1.06230517,3403.7,3403.6,3.14326557]
[1762624737106,1.06230517,3403.7,3403.6,0.2052]
[1762624737420,1.30490689,3403.7,3403.6,0.2052]
[1762624737823,1.30490689,3403.7,3403.6,0.2062]
[1762624738014,1.30690689,3403.7,3403.6,0.2062]
[1762624743821,2.56661889,3403.7,3403.6,0.2062]
[1762624744533,11.0838846,3403.7,3403.6,0.2062]
[1762624744832,10.68202216,3403.7,3403.6,0.2062]
[1762624745556,7.74404291,3403.7,3403.6,0.2062]
[1762624746635,2.56661889,3403.7,3403.6,0.2062]
[1762624747030,0.52310289,3403.7,3403.6,0.2062]
[1762624747240,0.65880117,3403.7,3403.6,0.2062]
[1762624747449,1.06430517,3403.7,3403.6,0.2062]
[1762624750149,0.68600517,3403.7,3403.6,0.2062]
[1762624752866,0.68674284,3403.7,3403.6,0.2062]
[1762624753452,1.06504284,3403.7,3403.6,0.2062]
[1762624753665,1.30791832,3403.7,3403.6,0.2062]
[1762624754368,6.36841368,3403.7,3403.6,0.2062]
[1762624756271,0.92961832,3403.7,3403.6,0.2062]
[1762624757050,0.92961832,3403.7,3403.6,3.60196557]
[1762624757051,0.27743884,3403.7,3403.6,3.60196557]
[1762624757250,0.27743884,3403.7,3403.6,4.06216557]
[1762624758177,0.42383884,3403.7,3403.6,4.06216557]
[1762624758761,0.27743884,3403.7,3403.6,4.06216557]
[1762624760983,0.27743884,3403.7,3403.6,4.33960441]
[1762624761900,0.27743884,3403.7,3403.6,5.36119587]
[1762624763402,0.27743884,3403.7,3403.6,5.15599587]
[1762624763902,0.27743884,3403.7,3403.6,3.85696557]
[1762624764101,0.27743884,3403.7,3403.6,3.39676557]
[1762624764806,5.6059342,3403.7,3403.6,2.93906557]
[1762624764996,0.54543884,3403.7,3403.6,2.93906557]
[1762624765198,0.27743884,3403.7,3403.6,3.85696557]
[1762624765395,0.27743884,3403.7,3403.6,3.39676557]
[1762624765973,0.27743884,3403.7,3403.6,2.93906557]
[1762624767268,0.27743884,3403.7,3403.6,3.85696557]
[1762624767499,0.27743884,3403.7,3403.6,4.53648526]
[1762624767682,0.27743884,3403.7,3403.6,4.07628526]
[1762624768308,0.27743884,3403.7,3403.6,4.53648526]
[1762624771822,0.27743884,3403.7,3403.6,4.07628526]
[1762624772025,0.27743884,3403.7,3403.6,3.39676557]
[1762624774089,0.27743884,3403.7,3403.6,2.93906557]
[1762624774926,0.44743884,3403.7,3403.6,2.93906557]
[1762624775143,0.27743884,3403.7,3403.6,2.93906557]
[1762624775532,0.27743884,3403.7,3403.6,3.42536557]
[1762624775845,0.27743884,3403.7,3403.6,3.92456557]
[1762624776206,0.27743884,3404.7,3404.0,0.4863]
[1762624776551,1.259712,3404.8,3404.5,2.93728706]
[1762624776704,1.755412,3404.8,3404.5,2.93720822]
[1762624777033,0.0582,3404.6,3404.5,2.93720822]
[1762624781254,0.191,3404.9,3404.7,2.9370399]
[1762624781548,0.596504,3404.9,3404.8,2.93703007]
[1762624781754,0.410504,3404.9,3404.8,3.42333007]
[1762624782106,0.410504,3404.9,3404.8,2.93703007]
[1762624782749,0.410504,3404.9,3404.8,3.42333007]
[1762624782953,0.410504,3404.9,3404.8,3.92253007]
[1762624783111,0.005,3404.9,3404.8,3.92253007]
[1762624783452,0.005,3404.9,3404.8,3.42333007]
[1762624784009,0.005,3404.9,3404.8,4.10930303]
[1762624784215,0.0757,3404.9,3404.8,3.62300303]
[1762624784555,0.0757,3404.9,3404.8,2.93703007]
[1762624784851,0.005,3404.9,3404.8,2.93703007]
[1762624785011,0.005,3404.9,3404.8,3.40283007]
[1762624786355,0.1514,3404.9,3404.8,3.40283007]
[1762624786557,0.1514,3404.9,3404.8,4.10518303]
[1762624786792,0.2221,3404.9,3404.6,2.93714574]
[1762624786931,0.1464,3404.6,3404.5,3.14235716]
[1762624787128,0.622004,3404.6,3404.5,0.2051]
[1762624787470,0.405504,3404.5,3404.3,2.93739934]
[1762624787642,0.880604,3404.5,3403.4,2.93816545]
[1762624787958,0.1464,3404.1,3403.9,2.93772463]
[1762624788172,0.27482175,3404.0,3403.9,2.93772463]
[1762624788377,0.1464,3403.9,3403.8,2.93785918]
[1762624788529,0.42122175,3403.9,3403.8,2.93785918]
[1762624788729,0.49162175,3403.9,3403.8,2.93785918]
[1762624789354,0.49162175,3403.9,3403.8,2.93789294]
[1762624789860,0.42122175,3403.9,3403.8,3.39749294]
[1762624790099,0.27482175,3403.9,3403.8,4.5047466]
[1762624790223,0.27482175,3403.9,3403.8,4.0311466]
[1762624791464,0.27482175,3403.9,3403.8,4.5047466]
[1762624791665,0.27482175,3403.9,3403.8,4.0311466]
[1762624792258,0.27482175,3403.9,3403.8,4.5047466]
[1762624796114,0.27482175,3403.9,3403.8,4.0311466]
[1762624796301,0.27482175,3403.9,3403.8,3.39749294]
[1762624797121,0.35282175,3403.9,3403.8,2.93789294]
[1762624797487,0.27482175,3403.9,3403.8,2.93789294]
[1762624797811,0.27482175,3403.9,3403.8,3.39749294]
[1762624800411,0.35282175,3403.9,3403.8,2.93789294]
[1762624800615,0.49922175,3403.9,3403.8,2.93789294]
[1762624801310,0.405504,3403.8,3403.6,0.001]
[1762624801524,1.94473775,3403.7,3403.6,0.001]
[1762624801728,2.43443775,3403.7,3403.6,0.001]
[1762624804935,5.372417,3403.7,3403.6,0.001]
[1762624805096,2.43443775,3403.7,3403.6,0.001]
[1762624806733,5.372417,3403.7,3403.6,0.001]
[1762624807034,6.79729039,3403.7,3403.6,0.001]
[1762624808696,11.85778575,3403.7,3403.6,0.001]
[1762624809037,4.60354056,3403.3,3403.2,0.001]
[1762624809210,1.99513775,3403.3,3403.2,0.001]
[1762624809532,7.05563311,3403.3,3403.2,0.001]
[1762624809707,8.39780159,3403.3,3403.2,0.001]
[1762624810040,3.33730623,3403.3,3403.2,0.001]
[1762624810223,1.94003775,3403.3,3403.2,0.4515]
[1762624810536,1.99973775,3403.3,3403.2,0.001]
[1762624811235,2.00393775,3403.3,3403.2,0.001]
[1762624812656,5.42346231,3403.3,3403.2,0.001]
[1762624812828,2.48513775,3403.3,3403.2,0.001]
[1762624812999,3.82733525,3403.3,3403.2,0.001]
[1762624813399,6.76565981,3403.3,3403.2,0.001]
[1762624815342,7.16926839,3403.3,3403.2,0.001]
[1762624815512,6.76565981,3403.3,3403.2,0.001]
[1762624816302,11.94383159,3403.3,3403.2,0.001]
[1762624816548,12.34744017,3403.3,3403.2,0.001]
[1762624817204,3.3440876,3403.0,3402.9,0.001]
[1762624817402,7.25009276,3403.0,3402.9,0.001]
[1762624817568,7.73979276,3403.0,3402.9,0.001]
[1762624817767,7.33618418,3403.0,3402.9,0.001]
[1762624820178,7.73979276,3403.0,3402.9,0.001]
[1762624820378,7.33618418,3403.0,3402.9,0.001]
[1762624820584,12.51435596,3403.0,3402.9,0.001]
[1762624821232,12.91796454,3403.0,3402.9,0.001]
[1762624823084,12.51435596,3403.0,3402.9,0.001]
[1762624823315,12.95113121,3403.0,3402.9,0.001]
[1762624823782,13.41212085,3403.0,3402.9,0.001]
[1762624827085,2.93899787,3402.6,3402.1,0.6681]
[1762624827299,1.26810725,3402.5,3402.1,0.6681]
[1762624827502,1.53453375,3402.4,3402.1,0.6681]
[1762624827706,0.405504,3402.2,3402.1,0.6681]
[1762624827903,0.68032575,3402.2,3402.1,0.6681]
[1762624828109,0.68032575,3402.2,3402.1,1.1186]
[1762624828519,0.68032575,3402.2,3402.1,4.05796098]
[1762624828922,0.68032575,3402.2,3402.1,1.1186]
[1762624829528,0.68032575,3402.2,3402.1,0.4565]
[1762624831327,1.17722575,3402.2,3402.1,0.006]
[1762624832128,0.68032575,3402.2,3402.1,0.006]
[1762624832327,0.27465232,3402.2,3402.1,0.4943]
[1762624835959,0.27465232,3402.2,3402.1,0.9443]
[1762624837108,0.68015632,3402.2,3402.1,0.4943]
[1762624837452,5.90449926,3402.2,3402.1,0.006]
[1762624837743,2.96522468,3402.2,3402.1,0.006]
[1762624838447,2.46832468,3402.2,3402.1,0.006]
[1762624838653,2.46832468,3402.2,3402.1,0.4943]
[1762624839668,11.13517104,3402.2,3402.1,0.006]
[1762624839939,11.13517104,3402.2,3401.7,0.001]
[1762624839940,4.6048362,3401.8,3401.7,0.001]
[1762624840144,11.76041201,3401.8,3401.7,0.001]
[1762624840345,11.99701201,3401.8,3401.7,0.001]
[1762624840526,11.76041201,3401.8,3401.7,0.001]
[1762624840721,11.32363676,3401.8,3401.7,0.001]
[1762624840915,11.37613676,3401.8,3401.7,0.001]
[1762624841115,11.81291201,3401.8,3401.7,0.001]
[1762624843948,11.81291201,3401.8,3401.3,0.001]
[1762624843949,3.41806899,3401.6,3401.3,0.001]
[1762624844149,3.34564277,3401.2,3400.9,0.001]